Cogmind - Beta 13 @@@ ROGUE MODE // 2024.07.11 @ 14:06:48 Player: Some Pennies Result: Destroyed self with Rocket Launcher Performance ------------- Evolutions (0) 0 Regions Visited (4) 800 Robots Destroyed (23) 115 Value Destroyed (417) 417 Prototype IDs (23) 460 Alien Tech Used (0) 0 Bonus (300) 300 TOTAL SCORE: 2092 Bonus ------- Aligned with FarCom 300 Cogmind --------- Core Integrity 0/250 Matter 237/300 Energy 240/250 System Corruption 0% Temperature Cool (0) Movement Treading (240) Ox1 Location -9/Mines Parts ------- > --- POWER (1) -------- Ion Engine > --- PROPULSION (2) --- Light Treads Light Treads > --- UTILITY (2) ------ High-capacity Storage Unit Medium Armor Plating > --- WEAPON (2) ------- Beam Cannon Rocket Launcher > --- INVENTORY (20) --- Light Nuclear Core Light Angular Momentum Engine Light Treads Light Treads Light Treads Light Treads Improved Heat Sink Improved Heat Sink Seismic Detector Hacking Suite Beam Cannon Beam Cannon Beam Cannon Light Assault Rifle Field Lobotomy Kit (5) Mining Laser Peak State ------------ > --- POWER ------------ Ion Engine > --- PROPULSION ------- Light Treads Light Treads > --- UTILITY ---------- Large Storage Unit Superbattery > --- WEAPON ----------- Beam Cannon Light Assault Rifle > --- INVENTORY -------- Light Nuclear Core Light Angular Momentum Engine Light Treads Light Treads Light Treads Improved Heat Sink Improved Heat Sink Signal Interpreter Hacking Suite Beam Cannon Beam Cannon Beam Cannon Beam Cannon Rocket Launcher Mining Laser [Rating: 18] Favorites ----------- Power Ion Engine Engine Ion Engine Propulsion Light Treads Treads Light Treads Wheel Wheel Utility Seismic Detector Device Seismic Detector Storage Large Storage Unit Protection Medium Armor Plating Weapon Beam Cannon Energy Gun Medium Laser Energy Cannon Beam Cannon Ballistic Gun Light Assault Rifle Launcher Rocket Launcher Build | -11 -10 -10 -10 -9 ------- Run | Yrd Mat Min Exi Min Slots Evolved . | . . . . . Power . | . . . . . Propulsion . | . . . . . Utility . | . . . . . Weapon . | . . . . . Parts Attached 40 | 7 9 15 4 5 Power 4 | 1 . 3 . . Engine 4 | 1 . 3 . . Core . | . . . . . Reactor . | . . . . . Propulsion 8 | 2 3 3 . . Treads 7 | 1 3 3 . . Leg . | . . . . . Wheel 1 | 1 . . . . Hover . | . . . . . Flight . | . . . . . Utility 13 | 2 1 4 4 2 Device 5 | 1 . 3 1 . Storage 7 | 1 1 1 3 1 Processor . | . . . . . Hackware . | . . . . . Protection 1 | . . . . 1 Artifact . | . . . . . Weapon 15 | 2 5 5 . 3 Energy Gun 1 | 1 . . . . Energy Cannon 6 | . 4 2 . . Ballistic Gun 6 | 1 1 3 . 1 Ballistic Cannon . | . . . . . Launcher 2 | . . . . 2 Special Weapon . | . . . . . Impact Weapon . | . . . . . Slashing Weapon . | . . . . . Piercing Weapon . | . . . . . Special Melee Weapon . | . . . . . Unidentified Prototypes . | . . . . . Parts Lost 3 | . . 3 . . Power 1 | . . 1 . . Propulsion . | . . . . . Utility 1 | . . 1 . . Weapon 1 | . . 1 . . Highest Loss Streak 3 | . . 3 . . To Critical Strikes . | . . . . . Average Slot Usage (%) 93 | . 99 84 96 94 Engine 13 | . 14 10 14 14 Treads 26 | . 26 25 28 28 Device 8 | . 14 10 10 . Storage 13 | . 14 10 14 14 Protection 2 | . . . . 9 Energy Cannon 15 | . 18 16 14 14 Ballistic Gun 10 | . 8 10 14 9 Launcher 1 | . . . . 4 Naked Turns 52 | . . 52 . . Heaviest Build 212 | 15 32 32 209 212 Greatest Support 40 | 20 40 40 40 40 Greatest Overweight (x) 5 | 1 3 1 5 5 Average Overweight (x) . | . . . . 1 Largest Inventory Capacity 35 | 8 15 15 35 35 Average Capacity 17 | 7 14 12 20 25 Most Carried 19 | 5 15 15 17 19 Average Carried 13 | 2 14 11 14 16 Final Capacity 35 | 8 15 15 35 20 Final Carried 17 | 5 15 15 17 16 Class Distribution -------------------- 86% | Mutant 13% | Hauler-Mutant Dominant Class ---------------- Mutant | -10/Materials Mutant | -10/Mines Mutant | -10/Exiles Mutant | -9/Mines Resources | -11 -10 -10 -10 -9 ----------- Run | Yrd Mat Min Exi Min Matter Collected 700 | 282 168 190 . 60 Remotely . | . . . . . Salvage Created 832 | 110 580 142 . . Parts 48 | 7 35 6 . . Haulers Intercepted 2 | . 2 . . . Recyclers Shooed 3 | . 2 . . 1 Parts Field Recycled . | . . . . . Retrieved Matter . | . . . . . Parts Self-Destructed . | . . . . . Prevented . | . . . . . Kills | -11 -10 -10 -10 -9 ------- Run | Yrd Mat Min Exi Min Combat Hostiles Destroyed 18 | . 9 9 . . Guns 9 | . 1 8 . . Cannons 9 | . 8 1 . . Classes Destroyed 11 | 2 6 3 . . Worker 1 | . . 1 . . Builder 1 | . 1 . . . Tunneler 2 | 2 . . . . Hauler 2 | . 2 . . . Recycler 2 | 1 1 . . . Operator 1 | . 1 . . . Watcher 2 | . 2 . . . Swarmer 5 | . 3 2 . . Grunt 6 | . 6 . . . Demolisher 1 | . . 1 . . Assembled 6 | . . 6 . . Best Kill Streak 6 | 1 6 3 . . Combat Bots Only 4 | . 4 3 . . Max Kills in Single Turn 2 | 1 2 2 . . Gunslinging 1 | . . 1 . . Exploded . | . . . . . Melee . | . . . . . Uniques/NPCs Destroyed . | . . . . . Combat | -11 -10 -10 -10 -9 -------- Run | Yrd Mat Min Exi Min Hostile Shots Fired 118 | . 34 83 . 1 Missed 38 | . 8 30 . . Damage Taken 1297 | . 341 890 . 66 Core 267 | . 73 176 . 18 Absorbed by Shields . | . . . . . Regen/Repaired (Parts) 118 | . 118 . . . Core Remaining (%) 100 | 100 . . . . Volleys Fired 92 | 4 53 32 . 3 Largest 2 | 2 2 2 . 2 Hottest 120 | 70 120 120 . 80 Shots Fired 182 | 8 106 64 . 4 Gun 99 | 8 44 46 . 1 Cannon 81 | . 62 18 . 1 Launcher 2 | . . . . 2 Special . | . . . . . Kinetic 95 | 4 44 46 . 1 Thermal 85 | 4 62 18 . 1 Explosive 2 | . . . . 2 Electromagnetic . | . . . . . Robot Hit Streak 13 | 4 13 12 . 4 Robot Miss Streak 4 | 1 4 2 . . Penetration Max . | . . . . . Secondary Targets 2 | . . 2 . . Max Gunslinging Chain 1 | . . 1 . . Shots Hit Robots 106 | 5 62 38 . 1 Core Hits 50 | 4 22 24 . . Critical Kills . | . . . . . Critical Parts Destroyed . | . . . . . Critical Strikes . | . . . . . Melee Attacks . | . . . . . Impact . | . . . . . Slashing . | . . . . . Piercing . | . . . . . Sneak Attacks . | . . . . . Combat Hostiles . | . . . . . Follow-up Attacks . | . . . . . Damage Inflicted 1556 | 60 993 451 . 52 Guns 522 | 60 242 220 . . Cannons 930 | . 738 192 . . Explosions 52 | . . . . 52 Melee . | . . . . . Ramming 52 | . 13 39 . . Kinetic 497 | 35 242 220 . . Thermal 955 | 25 738 192 . . Explosive 52 | . . . . 52 Electromagnetic . | . . . . . Impact . | . . . . . Slashing . | . . . . . Piercing . | . . . . . Highest Corruption . | . . . . . Average Corruption . | . . . . . Corruption Purged . | . . . . . Corruption Blocked . | . . . . . Overload Shots . | . . . . . Overflow Damage 36 | . 14 . . 22 Projectiles 14 | . 14 . . . Explosions 22 | . . . . 22 Melee . | . . . . . Knockbacks . | . . . . . Impact . | . . . . . Kinetic . | . . . . . Secondary . | . . . . . Self-Inflicted Damage 58 | . . 8 . 50 Shots 2 | . . . . 2 Rammed 9 | . 2 7 . . Targets Rammed 9 | . 2 7 . . Kicked . | . . . . . Crushed . | . . . . . Highest Temperature 246 | 18 246 200 . 46 Average Temperature 74 | 8 81 58 . 28 Received Heat Transfer 435 | . 186 240 . 9 Siege Activations . | . . . . . Robots Corrupted . | . . . . . Combat Hostiles . | . . . . . Parts Fried . | . . . . . Impact Corruptions . | . . . . . Robots Melted . | . . . . . Combat Hostiles . | . . . . . Parts Melted 5 | . 5 . . . Heat Transferred 2035 | 74 1554 407 . . Parts Sabotaged . | . . . . . Parts Stolen . | . . . . . Parts Stripped . | . . . . . Power Chain Reactions . | . . . . . Alert | -11 -10 -10 -10 -9 ------- Run | Yrd Mat Min Exi Min Peak Influence 312 | 15 312 80 . 5 Initial 9 | . 9 4 . . Average 48 | 5 136 7 . 1 Maximum Alert Level 1 | . 1 . . . Low Security (%) 95 | 100 85 100 . 100 Level 1 4 | . 14 . . . Level 2 . | . . . . . Level 3 . | . . . . . Level 4 . | . . . . . Level 5 . | . . . . . High Security . | . . . . . Max Security . | . . . . . Squads Dispatched 2 | . 2 . . . Investigation 1 | . 1 . . . Extermination . | . . . . . Reinforcement 1 | . 1 . . . Assault . | . . . . . Garrison . | . . . . . Intercept . | . . . . . Searches Triggered . | . . . . . Construction Impeded . | . . . . . Haulers Reinforced . | . . . . . Active Scanning Responses . | . . . . . Cargo Convoy Interrupts . | . . . . . Stealth | -11 -10 -10 -10 -9 --------- Run | Yrd Mat Min Exi Min Distress Signals 4 | . 3 1 . . Communications Jammed . | . . . . . Distress Signals . | . . . . . Times Spotted 56 | . 19 34 . 3 Peak Tracking Total 15 | . 6 15 . 3 Tactical Retreats 8 | . 3 5 . . Traps | -11 -10 -10 -10 -9 ------- Run | Yrd Mat Min Exi Min Traps Triggered 1 | . 1 . . . Indirectly . | . . . . . Trap Hack Attempts . | . . . . . Triggered . | . . . . . Disarmed . | . . . . . Reprogrammed . | . . . . . Reused . | . . . . . Traps Extracted . | . . . . . Installed . | . . . . . Triggered . | . . . . . Machines | -11 -10 -10 -10 -9 ---------- Run | Yrd Mat Min Exi Min Machines Disabled . | . . . . . Max in Single Turn . | . . . . . Machines Repaired . | . . . . . Machines Dismantled . | . . . . . Machines Sabotaged . | . . . . . Overloaded Fab Kills . | . . . . . Hacking | -11 -10 -10 -10 -9 --------- Run | Yrd Mat Min Exi Min Machines Accessed 7 | . 5 . 2 . Terminals 4 | . 4 . . . Fabricators . | . . . . . Repair Stations 1 | . 1 . . . Recycling Units . | . . . . . Scanalyzers . | . . . . . Garrison Access . | . . . . . Total Hacks 47 | . 23 . 24 . Successful 35 | . 11 . 24 . Failed 12 | . 12 . . . Catastrophic 1 | . 1 . . . Database Lockouts . | . . . . . Manual 13 | . 12 . 1 . Terminals 18 | . 18 . . . Fabricators . | . . . . . Repair Stations 5 | . 5 . . . Recycling Units . | . . . . . Scanalyzers . | . . . . . Garrison Access . | . . . . . Terminal Hacks 31 | . 7 . 24 . Record 23 | . . . 23 . Part Schematic 1 | . 1 . . . Robot Analysis 4 | . 4 . . . Emergency Access Points 1 | . 1 . . . Locate Traps 1 | . 1 . . . Derelict Proto ID Bank 1 | . . . 1 . Fabricator Hacks . | . . . . . Repair Station Hacks 4 | . 4 . . . Scan Component 2 | . 2 . . . Repair 2 | . 2 . . . Recycling Unit Hacks . | . . . . . Scanalyzer . | . . . . . Garrison Access Hacks . | . . . . . Unauthorized Hacks . | . . . . . Terminals . | . . . . . Fabricators . | . . . . . Repair Stations . | . . . . . Recycling Units . | . . . . . Scanalyzers . | . . . . . Garrison Access . | . . . . . Data Cores Recovered . | . . . . . Used . | . . . . . Hacking Detections 5 | . 5 . . . Full Trace Events 1 | . 1 . . . Feedback Events . | . . . . . Feedback Blocked . | . . . . . Robot Schematics Acquired . | . . . . . Robots Built . | . . . . . Authchips . | . . . . . Time . | . . . . . Total Robot Build Rating . | . . . . . Part Schematics Acquired 1 | . 1 . . . Parts Built . | . . . . . Authchips . | . . . . . Time . | . . . . . Total Part Build Rating . | . . . . . Parts Repaired 2 | . 2 . . . Time 52 | . 52 . . . Parts Recycled . | . . . . . Recycled Matter . | . . . . . Retrieved Matter . | . . . . . Retrieved Components . | . . . . . Parts Scanalyzed . | . . . . . Part Schematics Acquired . | . . . . . Parts Damaged . | . . . . . Bothacking | -11 -10 -10 -10 -9 ------------ Run | Yrd Mat Min Exi Min Used RIF Installer . | . . . . . Robots Hacked . | . . . . . Non-combat . | . . . . . Combat . | . . . . . Robot Hacks Applied . | . . . . . Relay Couplers Released . | . . . . . Fabnet Peak Effective % . | . . . . . Robots Rewired . | . . . . . Allies Hacked . | . . . . . Hacks Repelled . | . . . . . Allies | -11 -10 -10 -10 -9 -------- Run | Yrd Mat Min Exi Min Total Allies 3 | . . 3 . . Largest Group 3 | . . 3 . . Highest-Rated Group 40 | . . 40 . . Highest-Rated Ally 16 | . . 16 . . Total Orders . | . . . . . Ally Attacks 9 | . . 9 . . Total Damage 71 | . . 71 . . Kills 1 | . . 1 . . Allies Corrupted . | . . . . . Allies Melted . | . . . . . Intel | -11 -10 -10 -10 -9 ------- Run | Yrd Mat Min Exi Min Robot Analysis Total 4 | . 4 . . . Derelict Logs Recovered 2 | . . 1 . 1 Drone Launches . | . . . . . Drone Recoveries . | . . . . . Exploration | -11 -10 -10 -10 -9 ------------- Run | Yrd Mat Min Exi Min Turns Passed 4338 | 125 1207 1063 711 1232 Spaces Moved 2254 | 71 593 857 329 404 Core 421 | 2 . 419 . . Treads 1726 | 44 511 438 329 404 Legs . | . . . . . Wheels 107 | 25 82 . . . Hover . | . . . . . Flight . | . . . . . Fastest Speed 50 | 50 95 50 160 160 Average Speed 169 | 132 153 107 210 298 Slowest Speed 560 | 160 160 240 560 560 Overloaded Moves . | . . . . . Propulsion Burnouts . | . . . . . Robots Hopped . | . . . . . Cave-ins Triggered . | . . . . . Exploration Rate (%) 66 | 5 78 98 71 78 Regions Visited 4 Branch Regions 3 Pre-discovered Areas 1 | . . . 1 . Known Exits Taken . | . . . . . Unknown Exits Taken 4 | 1 1 1 1 . Scrap Searched 4 | . . 1 . 3 Spaces Dug 4 | . . . . 4 Terrain Destroyed 9 | . . . . 9 Melee . | . . . . . Projectile . | . . . . . AOE 9 | . . . . 9 Terrain Rammed . | . . . . . Walls Destroyed . | . . . . . Machines Disabled . | . . . . . Actions | -11 -10 -10 -10 -9 --------- Run | Yrd Mat Min Exi Min Total 2602 | 90 791 941 354 426 Wait 116 | 3 108 5 . . Move 2250 | 70 592 856 328 404 Hop . | . . . . . Pick Up 71 | 6 17 19 16 13 Fast Attach 16 | 6 2 4 2 2 Attach 9 | 1 1 6 1 . Detach . | . . . . . Swap 15 | . 6 5 1 3 Drop 24 | . 10 7 6 1 Fire 92 | 4 53 32 . 3 Melee . | . . . . . Ram 2 | . . 2 . . Kick . | . . . . . Crush 7 | . 2 5 . . Escape Stasis . | . . . . . Rewire . | . . . . . Trap . | . . . . . Miscellaneous . | . . . . . Route ------- -11/Scrapyard -10/Materials (discovered 4 exits: [*Mat x2] / [*Min x2]) -10/Mines (discovered 3 exits: [*Mat x2] / *Exi) -10/Exiles -9/Mines (discovered 2 exits: *Mat x2) History --------- Turn | Location | Event 13 | -11/Scrapyard | Discovered new exit (range 14) 126 | -11/Scrapyard | Entered Materials 312 | -10/Materials | Build established: Mutant 398 | -10/Materials | Discovered new exit (range 15) 505 | -10/Materials | Discovered new exit (range 16) 654 | -10/Materials | Discovered new exit (range 8) 845 | -10/Materials | Discovered new exit (range 15) 1287 | -10/Materials | Repaired Lgt. Treads 1314 | -10/Materials | Repaired Lgt. Treads 1333 | -10/Materials | Entered Mines 1338 | -10/Mines | Met a Derelict bent on vengeance 1417 | -10/Mines | Discovered new exit (range 3) 1615 | -10/Mines | Assisted by bots powering up and referring to "LRC-V3" 1836 | -10/Mines | Assembled infested the area 1893 | -10/Mines | Lost 3 allies 1894 | -10/Mines | Released all parts (4) 1897 | -10/Mines | Core integrity fell below 50% 1909 | -10/Mines | Received a Rocket Launcher from a helpful Derelict 1921 | -10/Mines | Lost 3 parts (1p1u1w) 1956 | -10/Mines | Core integrity fell below 20% 1974 | -10/Mines | Discovered new exit (range 14) 2382 | -10/Mines | Deemed a non-threat by the Exiles lab entrance 2383 | -10/Mines | Discovered new exit (range 5) 2396 | -10/Mines | Entered Exiles 2435 | -10/Exiles | Met 8R-AWN 2462 | -10/Exiles | Met EX-HEX 2518 | -10/Exiles | Met EX-BIN 2536 | -10/Exiles | Aligned with FarCom system 2537 | -10/Exiles | Given EX-Vault access code 2574 | -10/Exiles | Opened EX-Vault 2589 | -10/Exiles | Found Superbattery 2598 | -10/Exiles | Found Field Lobotomy Kit 2631 | -10/Exiles | Warned to stay clear of 0b10 Research branches 2677 | -10/Exiles | Met EX-DEC 2845 | -10/Exiles | Learned location of Zion (-6) 2949 | -10/Exiles | Discovered new exit (range 14) 3107 | -10/Exiles | Left Exiles lab with Field Lobotomy Kit 3107 | -10/Exiles | Entered Mines 3267 | -9/Mines | Build established: Hauler-Mutant 3379 | -9/Mines | Identified exit to Materials 3828 | -9/Mines | Build established: Mutant 4229 | -9/Mines | Discovered exit to Materials (range 14) 4339 | -9/Mines | Destroyed self with Rocket Launcher Last Messages --------------- Interpreter. 03570_ Acquired Beam Cannon. 03571_ Destroyed Com. Wheel. 03571_ K-01 Serf collects debris. 03572_ U-05 Engineer lays Concrete. 03575_ K-01 Serf collects debris. 03575_ Acquired Beam Cannon. 03576_ U-05 Engineer lays Concrete. 03578_ U-05 Engineer builds a Wall. 03578_ Acquired Lgt. Treads. 03582_ U-05 Engineer lays Concrete. 03606_ T-07 Excavator is excavating. 03621_ U-05 Engineer lays Concrete. 03623_ T-07 Excavator is excavating. 03916_ A derelict is hurriedly installing traps. 03918_ GA-A4U(g): "Hehe, this'll put a wrench in their mining defense operations..." 03918_ GA-A4U(g) slips into the shadows. 04059_ T-07 Excavator is excavating. 04229_ EXIT=FOUND: MATERIALS Map ----- +----------------------------------------------------+ | #?????????????????????## ##???? | | ##??????????????????????## ##??? | | ! #????????????????????????## ## ##?? | | ##????????????????????????## #### ### | | #?????????????????????????## ##??# | | %#??????????????????????????######???## ## | | ##????????????????????????????????????## ##? | | # ##??????????????????????????????????????# ###?? | | ###??????????????????????????????????????### #???? | | ????????????????????????????????????###### #???? | | ???????????????????????????# ??? ??#^ ##???? | | ??????????????????????? ## ?# # #????? | | ??????????????????????# # # # ^ ##???? | | ?????????????????????? # ##??? | | ?????????????????????# ^ ##^# ###? | | ?????????????????????# # ^ ## | | ?????????????????????# ?#### | | ?????????????????????? #?????# | | ??????????????????????# #??????# | | ???????????????????????# ##?????# | | ????????????????????????# #?????## | | ?????????????????????????# #??????# ### | | ????????????????????????## ##?????# # ##?? | | ???????????????????# #### #?????# ####??? | | ???????????###??????# ##????# ####### | | ???????? g g # @ #????# ## | | ???????? g k #????# | | ?????????????## ##???# ### """ | | ??????????????## ##### #?# """ | | ???????????????# ## #?# """ | | ????????????? #### ########?# | | ????????????############ ##??#####????????# | | ???????????????????????#####????????????????? | | ?????????????????????????????????????????????##### | | ?????????????????????????????????????????????????? | | ?????????????????????????????????????????????????? | | | | | | | | | | | | | | | | | | | | | | | | | | | | | +----------------------------------------------------+ Best States ------------- Heat Dissipation 39 Energy Generation 10 Energy Capacity 1750 Matter Stores 300 Matter Capacity 300 Sight Range 16 Terrain Scan Density 10 Armor Coverage 225 Evasion (%) 50 Recoil Reduction 2 Item Schematics ----------------- Lgt. Armor Plating | -10/Materials | Hacked Robot Schematics ------------------ None Fabricated ------------ Nothing Alien Tech Used ----------------- None Achievements -------------- None Challenges ------------ None Game ------ Seed SwarmSingularityPrototype Manual? 0 Play Time 00:32:50 Cumulative 175.5 hours Start 2024.07.10 @ 12:49:40 End 2024.07.11 @ 14:06:48 Sessions 6 Manual Loads 0 Difficulty Rogue Special Mode None Game No. 151 Rogue 146 Adventurer 5 Explorer 0 Win Type - Total 3 Types 2/0/1/0/0/0/0/0/0 Lore% 65 Gallery% 77 Achievement% 57 Wizard Run 0 Options --------- Layout 2 ASCII 0 Keyboard 0 Movement Mouse Keybinds 0 Fullscreen 2 Font 24/Smallcaps Map View 50x44 Zoom Use 0% Tactical HUD 1 Map Filters NONE Filters NONE Steam 1 RUN: 680f9d8c-4445-4648-9438-6a3c8771abbd